fUST/lending_fUST_20250611
["ID","MTS","AMOUNT","RATE_DAILY","PERIOD"]
[365379303,1749633041846,-151.0,0.0002211,7]
[365379305,1749633041855,-151.0,0.0002211,7]
[365379307,1749633041864,-294.741623,0.0002211,7]
[365379309,1749633041873,-294.741623,0.0002211,7]
[365379311,1749633041883,-153.416781,0.0002211,7]
[365379313,1749633041892,-152.860383,0.0002211,7]
[365379315,1749633041902,-3000.0,0.0002212,2]
[365379317,1749633041911,-500.0,0.00022127,2]
[365379319,1749633041920,-3000.0,0.0002213,2]
[365379321,1749633041930,-151.0,0.0002213,7]
[365379323,1749633041939,-151.0,0.0002213,7]
[365379325,1749633041948,-3000.0,0.0002214,2]
[365379327,1749633041958,-482.27710366,0.00022141,6]
[365379329,1749633041967,-3000.0,0.0002215,2]
[365379331,1749633041977,-5385.921239,0.0002216,2]
[365379333,1749633041987,-151.0,0.00022191,7]
[365379335,1749633041996,-152.075357,0.00022191,7]
[365379337,1749633042006,-151.773593,0.00022191,7]
[365379339,1749633042016,-151.0,0.00022191,7]
[365379342,1749633042026,-151.0,0.00022191,7]
[365379344,1749633042036,-151.0,0.00022191,7]
[365379346,1749633042046,-460.0,0.00022191,4]
[365379348,1749633042057,-151.657686,0.00022191,7]
[365379350,1749633042066,-232.418398,0.00022191,7]
[365379352,1749633042077,-232.418398,0.00022191,7]
[365379354,1749633042087,-577.514893,0.00022191,7]
[365379356,1749633042096,-577.514893,0.00022191,7]
[365379358,1749633042105,-151.0,0.00022191,7]
[365379360,1749633042115,-546.09,0.00022191,4]
[365379362,1749633042125,-460.0,0.00022191,4]
[365379364,1749633042134,-1780.01,0.00022191,4]
[365379366,1749633042143,-654.83,0.00022191,4]
[365379368,1749633042153,-460.0,0.00022191,4]
[365379370,1749633042162,-460.0,0.00022191,4]
[365379372,1749633042171,-479.4,0.00022191,4]
[365379374,1749633042181,-460.0,0.00022191,4]
[365379376,1749633042190,-530.23,0.00022191,4]
[365379378,1749633042199,-684.18,0.00022191,4]
[365379380,1749633042209,-908.14,0.00022191,4]
[365379382,1749633042219,-269.456868,0.00022191,7]
[365379384,1749633042228,-872.08,0.00022191,4]
[365379386,1749633042237,-648.6,0.00022191,4]
[365379388,1749633042246,-151.0,0.00022191,7]
[365379390,1749633042256,-460.0,0.00022191,2]
[365379392,1749633042266,-843.45,0.00022191,4]
[365379394,1749633042275,-1246.32,0.00022191,4]
[365379396,1749633042285,-460.0,0.00022191,4]
[365379398,1749633042295,-1372.43,0.00022191,4]
[365379400,1749633042303,-2026.58,0.00022191,4]
[365379402,1749633042313,-1200.49,0.00022191,4]
[365379404,1749633042321,-1604.17,0.00022191,4]
[365379406,1749633042331,-406.025108,0.00022191,7]
[365379408,1749633042341,-406.025108,0.00022191,7]
[365379410,1749633042349,-727.63,0.00022191,4]
[365379412,1749633042359,-151.0,0.000222,7]
[365379414,1749633042368,-151.0,0.000222,7]
[365379416,1749633042377,-232.626488,0.000222,7]
[365379418,1749633042386,-151.0,0.000222,7]
[365379420,1749633042395,-418.73,0.000223,7]
[365379422,1749633042404,-178.52723075,0.00022306,2]
[365379424,1749633042414,-5000.0,0.00022306,2]
[365379426,1749633042423,-482.27710366,0.00022314,7]
[365379427,1749633042433,-587.0,0.00022331,2]
[365379428,1749633042441,-587.0,0.00022331,2]
[365379429,1749633042451,-151.0,0.00022365,7]
[365379430,1749633042460,-1034.24,0.00022418,2]
[365379431,1749633042470,-151.0,0.00022465,7]
[365379432,1749633042479,-151.0,0.00022465,7]
[365379433,1749633042489,-151.0,0.00022465,7]
[365379434,1749633042498,-151.0,0.00022465,7]
[365379435,1749633042507,-151.0,0.00022465,7]
[365379436,1749633042517,-350.03,0.00022465,4]
[365379437,1749633042526,-151.0,0.00022465,7]
[365379438,1749633042536,-294.741623,0.00022465,7]
[365379439,1749633042546,-294.741623,0.00022465,7]
[365379440,1749633042556,-546.09,0.00022465,4]
[365379441,1749633042565,-151.0,0.00022465,7]
[365379442,1749633042574,-213.373721,0.00022465,7]
[365379443,1749633042585,-460.0,0.00022465,4]
[365379444,1749633042594,-1780.01,0.00022465,4]
[365379445,1749633042604,-654.83,0.00022465,4]
[365379446,1749633042614,-460.0,0.00022465,4]
[365379447,1749633042623,-460.0,0.00022465,4]
[365379448,1749633042632,-479.4,0.00022465,4]
[365379449,1749633042641,-530.23,0.00022465,4]
[365379450,1749633042651,-684.18,0.00022465,4]
[365379451,1749633042660,-908.14,0.00022465,4]
[365379452,1749633042670,-872.08,0.00022465,4]
[365379453,1749633042679,-648.6,0.00022465,4]
[365379454,1749633042688,-460.0,0.00022465,2]
[365379455,1749633042697,-843.45,0.00022465,4]
[365379456,1749633042706,-1246.32,0.00022465,4]
[365379457,1749633042715,-460.0,0.00022465,4]
[365379458,1749633042725,-1372.43,0.00022465,4]
[365379460,1749633042734,-2026.58,0.00022465,4]
[365379462,1749633042744,-1200.49,0.00022465,4]
[365379463,1749633042754,-1604.17,0.00022465,4]
[365379464,1749633042765,-406.025108,0.00022465,7]
[365379466,1749633042774,-406.025108,0.00022465,7]
[365379467,1749633042783,-727.63,0.00022465,4]
[365379469,1749633042792,-482.27710366,0.00022486,7]
[365379470,1749633042803,-1949.62333814,0.00022492,2]
[365379471,1749633042813,-151.0,0.00022495,7]
[365379472,1749633042822,-213.16534259,0.0002251,2]
[365379474,1749633042833,-160.0,0.0002251,2]
[365379475,1749633042842,-160.0,0.0002251,2]
[365379478,1749633042852,-229.71724145,0.0002251,2]
[365379479,1749633042862,-160.0,0.0002251,2]
[365379480,1749633042872,-835.03886221,0.0002251,2]
[365379481,1749633042881,-844.64040732,0.0002251,2]
[365379482,1749633042890,-424.19973472,0.0002251,2]
[365379483,1749633042901,-160.0,0.0002251,2]
[365379485,1749633042912,-160.0,0.00022511,2]
[365379487,1749633042922,-208.34996188,0.00022557,2]
[365379489,1749633042932,-164.33362485,0.00022601,2]
[365379491,1749633042941,-482.27710366,0.00022659,7]
[365379493,1749633042951,-795.82,0.00022673,11]
[365379495,1749633042961,-500.0,0.00022737,2]
[365379497,1749633042971,-500.0,0.00022737,2]
[365379498,1749633042981,-500.0,0.00022737,2]
[365379499,1749633042991,-500.0,0.00022737,2]
[365379500,1749633043000,-500.0,0.00022737,2]
[365379501,1749633043010,-370.59179055,0.00022737,2]
[365379502,1749633043020,-500.0,0.00022737,2]
[365379505,1749633043030,-500.0,0.00022737,2]
[365379507,1749633043040,-500.0,0.00022737,2]
[365379509,1749633043050,-500.0,0.00022737,2]
[365379511,1749633043059,-500.0,0.00022737,2]
[365379513,1749633043069,-500.0,0.00022737,2]
[365379514,1749633043079,-500.0,0.00022737,2]
[365379515,1749633043094,-500.0,0.00022737,2]
[365379516,1749633043103,-500.0,0.00022737,2]
[365379517,1749633043114,-500.0,0.00022737,2]
[365379518,1749633043125,-500.0,0.00022737,2]
[365379519,1749633043135,-500.0,0.00022737,2]
[365379520,1749633043145,-500.0,0.00022737,2]
[365379521,1749633043155,-500.0,0.00022737,2]
[365379522,1749633043164,-500.0,0.00022737,2]
[365379523,1749633043175,-500.0,0.00022737,2]
[365379524,1749633043184,-500.0,0.00022737,2]
[365379525,1749633043194,-500.0,0.00022737,2]
[365379526,1749633043204,-540.69300009,0.00022737,2]
[365379527,1749633043213,-500.0,0.00022737,2]
[365379528,1749633043223,-151.0,0.00022739,7]
[365379530,1749633043232,-151.0,0.00022739,7]
[365379532,1749633043242,-151.0,0.00022739,7]
[365379533,1749633043252,-151.0,0.00022739,7]
[365379534,1749633043262,-546.09,0.00022739,4]
[365379536,1749633043271,-1780.01,0.00022739,4]
[365379538,1749633043281,-654.83,0.00022739,4]
[365379540,1749633043290,-460.0,0.00022739,4]
[365379542,1749633043300,-479.4,0.00022739,4]
[365379543,1749633043309,-530.23,0.00022739,4]
[365379545,1749633043318,-684.18,0.00022739,4]
[365379546,1749633043328,-181.39,0.00022739,2]
[365379547,1749633043340,-908.14,0.00022739,4]
[365379549,1749633043349,-872.08,0.00022739,4]
[365379551,1749633043360,-648.6,0.00022739,4]
[365379553,1749633043369,-460.0,0.00022739,2]
[365379555,1749633043379,-843.45,0.00022739,4]
[365379556,1749633043389,-1246.32,0.00022739,4]
[365379557,1749633043398,-460.0,0.00022739,4]
[365379558,1749633043408,-1372.43,0.00022739,4]
[365379559,1749633043417,-2026.58,0.00022739,4]
[365379560,1749633043426,-1200.49,0.00022739,4]
[365379561,1749633043435,-1604.17,0.00022739,4]
[365379562,1749633043447,-727.63,0.00022739,4]
[365379563,1749633043455,-152.188611,0.00022777,7]
[365379564,1749633043465,-406.025108,0.00022777,7]
[365379565,1749633043475,-406.025108,0.00022777,7]
[365379566,1749633043485,-1450.35,0.000228,7]
[365379567,1749633043495,-151.0,0.000228,7]
[365379569,1749633043505,-151.0,0.000228,7]
[365379570,1749633043515,-232.418398,0.000228,7]
[365379572,1749633043524,-232.418398,0.000228,7]
[365379573,1749633043534,-213.16534259,0.000228,7]
[365379574,1749633043545,-844.64040732,0.000228,7]
[365379576,1749633043555,-577.514893,0.000228,7]
[365379577,1749633043565,-577.514893,0.000228,7]
[365379578,1749633043575,-160.0,0.000228,7]
[365379579,1749633043586,-482.27710366,0.00022831,8]
[365379580,1749633043596,-201.429579,0.00022849,7]
[365379581,1749633043606,-201.429579,0.00022849,7]
[365379582,1749633043615,-5000.0,0.00022854,2]
[365379583,1749633043625,-153.0,0.00022877,2]
[365379584,1749633043634,-153.0,0.00022877,2]
[365379585,1749633043644,-153.0,0.00022877,2]
[365379586,1749633043653,-153.0,0.00022877,2]
[365379587,1749633043662,-153.0,0.00022877,2]
[365379588,1749633043671,-153.0,0.00022877,2]
[365379589,1749633043681,-153.0,0.00022877,2]
[365379590,1749633043690,-153.0,0.00022877,2]
[365379591,1749633043699,-153.0,0.00022877,2]
[365379592,1749633043709,-306.0,0.00022877,2]
[365379593,1749633043718,-153.0,0.00022877,2]
[365379594,1749633043727,-153.0,0.00022877,2]
[365379595,1749633043737,-153.0,0.00022877,2]
[365379596,1749633043746,-153.0,0.00022877,2]
[365379597,1749633043756,-153.0,0.00022877,2]
[365379598,1749633043767,-153.0,0.00022877,2]
[365379599,1749633043776,-1949.62333814,0.000229,2]
[365379600,1749633043786,-151.0,0.000229,7]
[365379601,1749633043796,-2803.10566142,0.000229,2]
[365379602,1749633043807,-1467.72489,0.00022931,3]
[365379604,1749633043816,-501.29927995,0.00022973,2]
[365379605,1749633043826,-502.74737807,0.00022973,2]
[365379607,1749633043840,-500.0,0.00022973,2]
[365379609,1749633043850,-500.0,0.00022973,2]
[365379610,1749633043859,-500.46089362,0.00022973,2]
[365379612,1749633043869,-502.39152022,0.00022973,2]
[365379613,1749633043878,-500.0,0.00022973,2]
[365379614,1749633043888,-440.39440254,0.00022973,2]
[365379615,1749633043897,-567.2069987,0.00022973,2]
[365379616,1749633043907,-600.0,0.00022973,2]
[365379617,1749633043916,-504.30310197,0.00022973,2]
[365379618,1749633043927,-506.16225976,0.00022973,2]
[365379619,1749633044028,-501.56200485,0.00022973,2]
[365379620,1749633044038,-212.26630749,0.00022973,2]
[365379621,1749633044048,-501.9396443,0.00022973,2]
[365379622,1749633044057,-501.56853042,0.00022973,2]
[365379623,1749633044067,-500.0,0.00022973,2]
[365379624,1749633044076,-501.81677955,0.00022973,2]
[365379625,1749633044085,-500.0,0.00022973,2]
[365379626,1749633044095,-503.11996169,0.00022973,2]
[365379627,1749633044105,-502.09184424,0.00022973,2]
[365379628,1749633044114,-500.53643659,0.00022973,2]
[365379629,1749633044124,-151.0,0.00022988,7]
[365379630,1749633044134,-151.0,0.00022988,7]
[365379631,1749633044144,-406.025108,0.00022988,7]
[365379632,1749633044153,-406.025108,0.00022988,7]
[365379633,1749633044163,-72390.74,0.00022988,7]
[365379634,1749633044172,-213.16534259,0.00022988,7]
[365379635,1749633044181,-160.0,0.00022988,7]
[365379636,1749633044191,-160.0,0.0002299,7]
[365379637,1749633044200,-434.3016927,0.00022996,2]
[365379638,1749633044209,-280.4839101,0.00022999,2]
[365379639,1749633044218,-38842.00803956,0.00023,2]
[365379640,1749633044227,-35888.30855142,0.00023,2]
[365379641,1749633044236,-183.0,0.00023,5]
[365379642,1749633044246,-352628.83508943,0.00023,2]
[365379643,1749633044264,-4747.49783594,0.00023,2]
[365379644,1749633044279,-108794.65555179,0.00023,2]
[365379645,1749633044435,-0.06584051,0.00021369,4]
[365379646,1749633044450,-1566.96415949,0.00021369,4]
[365379647,1749633044459,-151.0,0.00021369,2]
[365379648,1749633044468,-151.0,0.00021643,2]
[365379649,1749633044477,-1078.39907047,0.00021643,4]
[365379650,1749633044488,-488.63092953,0.00021643,4]
[365379651,1749633044497,-151.0,0.00021869,2]
[365379652,1749633044506,-1567.03,0.00021917,4]
[365379653,1749633044516,-151.0,0.00022,7]
[365379654,1749633044525,-1567.03,0.00022191,4]
[365379655,1749633044534,-151.0,0.00022191,7]
[365379656,1749633044543,-126.98424335,0.00022465,4]
[365379671,1749633046514,-1440.04575665,0.00022465,4]
[365379672,1749633046524,-849.9542133,0.00022739,4]
[365379674,1749633102050,161.182445,0.00013699,2]
[365379676,1749633526835,876.855,0.00018,2]
[365379698,1749634096333,161.182445,0.00013699,2]
[365379699,1749634115349,41103.38980375,0.00019,20]
[365379804,1749634235095,-312.52494282,0.000189,2]
[365379805,1749634235105,-4825.64275266,0.00020259,2]
[365379806,1749634235118,-12.52494284,0.00020259,2]
[365379807,1749634235127,-341.42,0.00020505,2]
[365379808,1749634235137,-67.53961425,0.00021,2]
[365379828,1749634238648,-1250.31168363,0.00021,2]
[365379829,1749634238659,-563.73371198,0.00021064,2]
[365379830,1749634238668,-460.0,0.00021095,4]
[365379831,1749634238677,-300.0,0.00021366,2]
[365379832,1749634238687,-300.0,0.00021366,2]
[365379833,1749634238697,-641.33,0.00021367,4]
[365379834,1749634238706,-460.0,0.00021367,4]
[365379835,1749634238715,-460.0,0.00021367,4]
[365379836,1749634238725,-460.0,0.00021367,4]
[365379837,1749634238734,-460.0,0.00021367,4]
[365379838,1749634238743,-1167.73,0.00021367,4]
[365379839,1749634238753,-1058.54,0.00021367,4]
[365379840,1749634238762,-1095.86,0.00021367,4]
[365379841,1749634238772,-581.25,0.00021367,4]
[365379842,1749634238781,-1480.66,0.00021367,4]
[365379843,1749634238791,-1427.72,0.00021367,4]
[365379844,1749634238801,-1288.54,0.00021367,4]
[365379845,1749634238948,-505.21,0.00021367,4]
[365379846,1749634238958,-460.0,0.00021367,4]
[365379847,1749634238968,-290.17316809,0.00021367,4]
[365379848,1749634238978,-316.03822774,0.00021367,2]
[365379849,1749634238988,-460.0,0.00021368,4]
[365379850,1749634238998,-192.08298,0.00021368,4]
[365379851,1749634239007,-1742.47,0.00021368,4]
[365379852,1749634239017,-460.0,0.00021368,4]
[365379853,1749634239026,-460.0,0.00021368,4]
[365379854,1749634239035,-460.0,0.00021368,4]
[365379855,1749634239044,-460.0,0.00021368,4]
[365379856,1749634239054,-460.0,0.00021368,4]
[365379857,1749634239065,-488.03,0.00021368,4]
[365379858,1749634239075,-388.87838009,0.00021368,4]
[365379859,1749634239087,-630.41,0.00021368,4]
[365379860,1749634239097,-275.21210443,0.00021368,4]
[365379861,1749634239107,-460.0,0.00021368,4]
[365379862,1749634239117,-820.37,0.00021368,4]
[365379863,1749634239127,-823.81,0.00021368,4]
[365379864,1749634239137,-741.28,0.00021368,4]
[365379865,1749634239147,-460.0,0.00021368,4]
[365379866,1749634239158,-460.0,0.00021368,2]
[365379867,1749634239178,-1902.47,0.00021368,4]
[365379868,1749634239191,-1071.23,0.00021368,4]
[365379869,1749634239201,-151.0,0.00021369,2]
[365379870,1749634239211,-161.255144,0.00021369,2]
[365379871,1749634239221,-151.0,0.00021369,2]
[365379872,1749634239231,-201.429579,0.00021369,2]
[365379873,1749634239241,-151.0,0.00021369,2]
[365379874,1749634239251,-201.429579,0.00021369,2]
[365379875,1749634239264,-151.0,0.00021369,2]
[365379876,1749634239286,-151.0,0.00021369,2]
[365379877,1749634239296,-460.0,0.00021369,4]
[365379878,1749634239306,-682.84,0.00021481,2]
[365379879,1749634239316,-641.33,0.00021641,4]
[365379880,1749634239326,-455.38,0.00021641,4]
[365379881,1749634239337,-460.0,0.00021641,4]
[365379882,1749634239348,-500.0,0.00021641,2]
[365379883,1749634239357,-500.0,0.00021641,2]
[365379884,1749634239367,-500.0,0.00021641,2]
[365379885,1749634239376,-500.0,0.00021641,2]
[365379886,1749634239398,-500.0,0.00021641,2]
[365379887,1749634239418,-269.82629057,0.00021641,2]
[365379888,1749634239429,-1167.73,0.00021641,4]
[365379889,1749634239439,-1058.54,0.00021641,4]
[365379890,1749634239448,-1095.86,0.00021641,4]
[365379891,1749634239457,-581.25,0.00021641,4]
[365379892,1749634239466,-1480.66,0.00021641,4]
[365379893,1749634239476,-1427.72,0.00021641,4]
[365379894,1749634239487,-1288.54,0.00021641,4]
[365379895,1749634239496,-505.21,0.00021641,4]
[365379896,1749634239506,-420.0,0.00021641,4]
[365379897,1749634239515,-460.0,0.00021642,4]
[365379898,1749634239524,-1742.47,0.00021642,4]
[365379899,1749634239534,-460.0,0.00021642,4]
[365379900,1749634239543,-460.0,0.00021642,4]
[365379901,1749634239551,-460.0,0.00021642,4]
[365379902,1749634239561,-460.0,0.00021642,4]
[365379903,1749634239570,-460.0,0.00021642,4]
[365379904,1749634239579,-488.03,0.00021642,4]
[365379905,1749634239588,-630.41,0.00021642,4]
[365379906,1749634239598,-460.0,0.00021642,4]
[365379907,1749634239607,-820.37,0.00021642,4]
[365379908,1749634239616,-823.81,0.00021642,4]
[365379909,1749634239625,-741.28,0.00021642,4]
[365379910,1749634239635,-460.0,0.00021642,4]
[365379911,1749634239644,-460.0,0.00021642,2]
[365379912,1749634239653,-1902.47,0.00021642,4]
[365379913,1749634239663,-1071.23,0.00021642,4]
[365379914,1749634239672,-151.0,0.00021643,2]
[365379915,1749634239682,-201.429579,0.00021643,2]
[365379916,1749634239691,-151.0,0.00021643,2]
[365379917,1749634239700,-201.429579,0.00021643,2]
[365379918,1749634239710,-151.0,0.00021643,2]
[365379919,1749634239719,-151.0,0.00021643,2]
[365379920,1749634239728,-151.0,0.00021658,2]
[365379921,1749634239738,-207.4,0.00021758,2]
[365379922,1749634239753,-151.0,0.00021817,2]
[365379923,1749634239768,-151.0,0.00021817,2]
[365379924,1749634239787,-152.203672,0.00021869,2]
[365379925,1749634239800,-201.429579,0.00021869,2]
[365379926,1749634239810,-201.429579,0.00021869,2]
[365379927,1749634239819,-151.0,0.00021869,2]
[365379928,1749634239829,-151.0,0.00021869,2]
[365379929,1749634239838,-362.62462039,0.000219,6]
[365379930,1749634239847,-641.33,0.00021915,4]
[365379931,1749634239857,-1167.73,0.00021915,4]
[365379932,1749634239867,-1058.54,0.00021915,4]
[365379933,1749634239877,-1095.86,0.00021915,4]
[365379934,1749634239886,-581.25,0.00021915,4]
[365379935,1749634239896,-1480.66,0.00021915,4]
[365379936,1749634239911,-1427.72,0.00021915,4]
[365379937,1749634239921,-1288.54,0.00021915,4]
[365379938,1749634239931,-505.21,0.00021915,4]
[365379939,1749634239940,-500.0,0.00021915,2]
[365379940,1749634239949,-460.0,0.00021916,4]
[365379941,1749634239959,-1742.47,0.00021916,4]
[365379942,1749634239968,-460.0,0.00021916,4]
[365379943,1749634239978,-460.0,0.00021916,4]
[365379944,1749634239987,-460.0,0.00021916,4]
[365379945,1749634239996,-460.0,0.00021916,4]
[365379946,1749634240006,-488.03,0.00021916,4]
[365379947,1749634240015,-630.41,0.00021916,4]
[365379948,1749634240025,-820.37,0.00021916,4]
[365379949,1749634240034,-823.81,0.00021916,4]
[365379950,1749634240043,-741.28,0.00021916,4]
[365379951,1749634240052,-460.0,0.00021916,4]
[365379952,1749634240061,-460.0,0.00021916,2]
[365379953,1749634240070,-1902.47,0.00021916,4]
[365379954,1749634240079,-1071.23,0.00021916,4]
[365379955,1749634240089,-500.0,0.00021973,2]
[365379956,1749634240098,-178.52723075,0.00021974,2]
[365379957,1749634240107,-5000.0,0.00021974,2]
[365379958,1749634240116,-1868.95025736,0.00021974,2]
[365379959,1749634240125,-1250.0,0.00021974,2]
[365379960,1749634240134,-1250.0,0.00021974,2]
[365379961,1749634240143,-1250.0,0.00021974,2]
[365379962,1749634240153,-1250.0,0.00021974,2]
[365379963,1749634240165,-1250.0,0.00021974,2]
[365379964,1749634240178,-1250.0,0.00021974,2]
[365379965,1749634240187,-1250.0,0.00021974,2]
[365379966,1749634240196,-1250.0,0.00021974,2]
[365379967,1749634240205,-1250.0,0.00021974,2]
[365379968,1749634240214,-1250.0,0.00021974,2]
[365379969,1749634240224,-1250.0,0.00021974,2]
[365379970,1749634240233,-1250.0,0.00021974,2]
[365379971,1749634240242,-1250.0,0.00021974,2]
[365379972,1749634240252,-1250.0,0.00021974,2]
[365379973,1749634240261,-1299.96414208,0.00021974,2]
[365379974,1749634240270,-500.0,0.00021989,2]
[365379975,1749634240279,-516.48314463,0.00021999,2]
[365379977,1749634240289,-166.27,0.00021999,2]
[365379979,1749634240298,-20001.2879615,0.00022,2]
[365379981,1749634240308,-73038.86600298,0.00022,3]
[365379983,1749634240319,-213.16534259,0.00022,3]
[365379985,1749634240328,-844.64040732,0.00022,3]
[365379986,1749634240338,-160.0,0.00022,3]
[365379988,1749634240347,-151.0,0.00022,7]
[365379990,1749634240357,-201.429579,0.00022,7]
[365379992,1749634240366,-151.0,0.00022,7]
[365379995,1749634240380,-201.429579,0.00022,7]
[365379996,1749634240401,-151.0,0.00022,7]
[365379998,1749634240418,-151.0,0.00022,7]
[365380000,1749634240428,-14494.97517242,0.00022,2]
[365380002,1749634240437,-197.0,0.00022,2]
[365380004,1749634240447,-362.62462011,0.00022003,6]
[365380006,1749634240456,-153.0,0.00022055,2]
[365380008,1749634240466,-153.0,0.00022055,2]
[365380010,1749634240475,-362.62462011,0.00022107,6]
[365380012,1749634240484,-151.0,0.0002211,7]
[365380014,1749634240493,-641.33,0.00022189,4]
[365380016,1749634240502,-1167.73,0.00022189,4]
[365380018,1749634240511,-1058.54,0.00022189,4]
[365380020,1749634240520,-1095.86,0.00022189,4]
[365380022,1749634240529,-581.25,0.00022189,4]
[365380024,1749634240538,-1480.66,0.00022189,4]
[365380026,1749634240547,-1427.72,0.00022189,4]
[365380028,1749634240556,-1288.54,0.00022189,4]
[365380030,1749634240565,-505.21,0.00022189,4]
[365380032,1749634240574,-460.0,0.0002219,4]
[365380034,1749634240584,-1742.47,0.0002219,4]
[365380035,1749634240594,-460.0,0.0002219,4]
[365380037,1749634240603,-591.48509361,0.0002219,4]
[365380039,1749634240613,-460.0,0.0002219,4]
[365380041,1749634240622,-488.03,0.0002219,4]
[365380043,1749634240631,-630.41,0.0002219,4]
[365380046,1749634240641,-820.37,0.0002219,4]
[365380048,1749634240650,-823.81,0.0002219,4]
[365380050,1749634240660,-741.28,0.0002219,4]
[365380052,1749634240669,-460.0,0.0002219,4]
[365380054,1749634240678,-460.0,0.0002219,2]
[365380056,1749634240688,-1902.47,0.0002219,4]
[365380058,1749634240698,-1071.23,0.0002219,4]
[365380060,1749634240707,-151.0,0.00022191,7]
[365380062,1749634240716,-201.429579,0.00022191,7]
[365380064,1749634240725,-151.0,0.00022191,7]
[365380066,1749634240735,-201.429579,0.00022191,7]
[365380067,1749634240744,-151.0,0.00022191,7]
[365380070,1749634240753,-151.0,0.00022191,7]
[365380072,1749634240762,-173.61221487,0.000222,69]
[365380074,1749634240772,-434.3016927,0.0002221,2]
[365380075,1749634240781,-362.62462011,0.0002221,6]
[365380077,1749634240790,-362.62462011,0.00022314,7]
[365380079,1749634240799,-160.0,0.00022397,2]
[365380081,1749634240808,-229.71724145,0.00022397,2]
[365380083,1749634240817,-835.03886221,0.00022397,2]
[365380085,1749634240826,-160.0,0.00022397,2]
[365380087,1749634240837,-844.64040732,0.00022397,2]
[365380089,1749634240846,-424.19973472,0.00022397,2]
[365380091,1749634240856,-160.0,0.00022397,2]
[365380093,1749634240865,-213.16534259,0.00022397,2]
[365380095,1749634240875,-160.0,0.00022397,2]
[365380097,1749634240884,-160.0,0.00022398,2]
[365380099,1749634240893,-160.0,0.00022398,2]
[365380101,1749634240903,-160.0,0.00022398,2]
[365380103,1749634240912,-362.62462011,0.00022417,7]
[365380105,1749634240922,-800.0,0.00022431,2]
[365380107,1749634240931,-1024.26,0.00022458,2]
[365380109,1749634240940,-641.33,0.00022463,4]
[365380111,1749634240950,-1167.73,0.00022463,4]
[365380113,1749634240959,-1058.54,0.00022463,4]
[365380115,1749634240968,-1095.86,0.00022463,4]
[365380117,1749634240977,-581.25,0.00022463,4]
[365380119,1749634240987,-1480.66,0.00022463,4]
[365380121,1749634240996,-1427.72,0.00022463,4]
[365380123,1749634241005,-1288.54,0.00022463,4]
[365380124,1749634241014,-505.21,0.00022463,4]
[365380127,1749634241024,-500.0,0.00022463,2]
[365380129,1749634241033,-460.0,0.00022464,4]
[365380131,1749634241042,-1742.47,0.00022464,4]
[365380132,1749634241051,-460.0,0.00022464,4]
[365380134,1749634241060,-460.0,0.00022464,4]
[365380136,1749634241070,-488.03,0.00022464,4]
[365380138,1749634241079,-630.41,0.00022464,4]
[365380140,1749634241089,-820.37,0.00022464,4]
[365380142,1749634241098,-823.81,0.00022464,4]
[365380144,1749634241107,-741.28,0.00022464,4]
[365380146,1749634241116,-460.0,0.00022464,4]